[Event "*** Titled Tuesday Blitz"]
[Site "Chess.com"]
[Date "2020.12.29"]
[Round "4"]
[White "BabyBoss31"]
[Black "ajdemipopushi"]
[Result "0-1"]
[WhiteElo "2201"]
[BlackElo "2342"]
[TimeControl "180+1"]
[EndTime "10:39:41 PST"]
[Termination "ajdemipopushi won by checkmate"]

1. e4 {[%clk 0:03:00.9]} 1... c5 {[%clk 0:02:59.3]} 2. Nf3 {[%clk 0:02:59.6]}
2... g6 {[%clk 0:02:59.7]} 3. d4 {[%clk 0:02:54.3]} 3... cxd4 {[%clk 0:02:59.8]}
4. Nxd4 {[%clk 0:02:53.2]} 4... Bg7 {[%clk 0:03:00]} 5. Nc3 {[%clk 0:02:52.5]}
5... Nc6 {[%clk 0:03:00.5]} 6. Be3 {[%clk 0:02:51.3]} 6... Nf6 {[%clk
0:03:01.1]} 7. Bc4 {[%clk 0:02:49.6]} 7... O-O {[%clk 0:02:46.6]} 8. Bb3 {[%clk
0:02:44.2]} 8... Ng4 {[%clk 0:02:46.1]} 9. Qxg4 {[%clk 0:02:39]} 9... Nxd4
{[%clk 0:02:45.9]} 10. Qd1 {[%clk 0:02:36.7]} 10... Nxb3 {[%clk 0:02:45.1]} 11.
axb3 {[%clk 0:02:35.8]} 11... d6 {[%clk 0:02:46]} 12. O-O {[%clk 0:02:30.8]}
12... a6 {[%clk 0:02:45.5]} 13. Bd4 {[%clk 0:02:27.3]} 13... Be6 {[%clk
0:02:40.5]} 14. Bxg7 {[%clk 0:02:21.4]} 14... Kxg7 {[%clk 0:02:40.3]} 15. Qd4+
{[%clk 0:02:21.1]} 15... f6 {[%clk 0:02:40.4]} 16. Nd5 {[%clk 0:02:06.7]} 16...
Rc8 {[%clk 0:02:39.8]} 17. c4 {[%clk 0:02:02.4]} 17... Bf7 {[%clk 0:02:25.1]}
18. f4 {[%clk 0:01:40]} 18... e6 {[%clk 0:02:24.1]} 19. Nc3 {[%clk 0:01:30]}
19... e5 {[%clk 0:02:22.6]} 20. Qd3 {[%clk 0:01:28.5]} 20... Qb6+ {[%clk
0:02:22]} 21. Kh1 {[%clk 0:01:25]} 21... Qxb3 {[%clk 0:02:20.7]} 22. Qxd6 {[%clk
0:01:23.2]} 22... Qxb2 {[%clk 0:02:12.8]} 23. Nd5 {[%clk 0:01:12.6]} 23... Bxd5
{[%clk 0:01:51.7]} 24. cxd5 {[%clk 0:01:09.5]} 24... Rf7 {[%clk 0:01:31.2]} 25.
Rab1 {[%clk 0:00:59.5]} 25... Qd4 {[%clk 0:01:30.5]} 26. fxe5 {[%clk 0:00:44.6]}
26... Qxe5 {[%clk 0:01:18.9]} 27. Qxe5 {[%clk 0:00:40.1]} 27... fxe5 {[%clk
0:01:19]} 28. Rxf7+ {[%clk 0:00:40.3]} 28... Kxf7 {[%clk 0:01:19.9]} 29. Rxb7+
{[%clk 0:00:40.4]} 29... Kf6 {[%clk 0:01:19.6]} 30. h3 {[%clk 0:00:39.2]} 30...
Rc1+ {[%clk 0:01:14.3]} 31. Kh2 {[%clk 0:00:39]} 31... Re1 {[%clk 0:01:14.6]}
32. Rxh7 {[%clk 0:00:21.5]} 32... Rxe4 {[%clk 0:01:13.8]} 33. Ra7 {[%clk
0:00:18.9]} 33... Ra4 {[%clk 0:01:06.3]} 34. Kg3 {[%clk 0:00:17.3]} 34... Kf5
{[%clk 0:00:58.5]} 35. d6 {[%clk 0:00:13.6]} 35... Ra3+ {[%clk 0:00:58]} 36. Kf2
{[%clk 0:00:13.6]} 36... a5 {[%clk 0:00:55.9]} 37. d7 {[%clk 0:00:13.8]} 37...
Rd3 {[%clk 0:00:55.5]} 38. Rxa5 {[%clk 0:00:12.5]} 38... Rxd7 {[%clk 0:00:55.1]}
39. Ke3 {[%clk 0:00:13.1]} 39... Rb7 {[%clk 0:00:54.9]} 40. g4+ {[%clk
0:00:12.7]} 40... Kf6 {[%clk 0:00:54.8]} 41. Ke4 {[%clk 0:00:08.6]} 41... Rb4+
{[%clk 0:00:53.6]} 42. Kf3 {[%clk 0:00:07.8]} 42... Rb3+ {[%clk 0:00:53.3]} 43.
Kg2 {[%clk 0:00:07.6]} 43... e4 {[%clk 0:00:53.4]} 44. Ra4 {[%clk 0:00:06.7]}
44... Ke5 {[%clk 0:00:52.6]} 45. Ra6 {[%clk 0:00:06.8]} 45... Rb2+ {[%clk
0:00:22.8]} 46. Kf1 {[%clk 0:00:05.4]} 46... g5 {[%clk 0:00:20.4]} 47. Ra5+
{[%clk 0:00:05.2]} 47... Kf4 {[%clk 0:00:20.6]} 48. Rf5+ {[%clk 0:00:05.5]}
48... Ke3 {[%clk 0:00:20.9]} 49. Rxg5 {[%clk 0:00:04.3]} 49... Rb1+ {[%clk
0:00:21.2]} 50. Kg2 {[%clk 0:00:04.5]} 50... Ke2 {[%clk 0:00:21.6]} 51. Re5
{[%clk 0:00:04]} 51... e3 {[%clk 0:00:21.8]} 52. g5 {[%clk 0:00:04.3]} 52... Rb6
{[%clk 0:00:19.3]} 53. h4 {[%clk 0:00:03.5]} 53... Rb4 {[%clk 0:00:17.7]} 54.
Kg3 {[%clk 0:00:03.5]} 54... Rb1 {[%clk 0:00:17.1]} 55. h5 {[%clk 0:00:02.8]}
55... Rg1+ {[%clk 0:00:16.2]} 56. Kh4 {[%clk 0:00:03.2]} 56... Kf3 {[%clk
0:00:15]} 57. h6 {[%clk 0:00:02.9]} 57... Rh1# {[%clk 0:00:14.4]} 0-1

[Event "*** Titled Tuesday Blitz"]
[Site "Chess.com"]
[Date "2020.12.29"]
[Round "4"]
[White "HackingKid98"]
[Black "DryCounty"]
[Result "0-1"]
[WhiteElo "2431"]
[BlackElo "2626"]
[TimeControl "180+1"]
[EndTime "10:39:46 PST"]
[Termination "DryCounty won by checkmate"]

1. d4 {[%clk 0:03:00.9]} 1... Nf6 {[%clk 0:02:59.2]} 2. c4 {[%clk 0:03:00.7]}
2... g6 {[%clk 0:02:59.2]} 3. g3 {[%clk 0:03:00.9]} 3... Bg7 {[%clk 0:02:59.4]}
4. Bg2 {[%clk 0:03:01.3]} 4... O-O {[%clk 0:02:59.8]} 5. Nf3 {[%clk 0:03:01.5]}
5... d6 {[%clk 0:03:00.2]} 6. Nc3 {[%clk 0:03:01.5]} 6... Nc6 {[%clk 0:03:00.4]}
7. O-O {[%clk 0:03:01.1]} 7... e5 {[%clk 0:03:00.2]} 8. dxe5 {[%clk 0:03:00.4]}
8... dxe5 {[%clk 0:03:00]} 9. Bg5 {[%clk 0:02:56.7]} 9... h6 {[%clk 0:02:59.2]}
10. Qxd8 {[%clk 0:02:52.8]} 10... Rxd8 {[%clk 0:02:59.2]} 11. Bxf6 {[%clk
0:02:52.5]} 11... Bxf6 {[%clk 0:03:00.1]} 12. Nd5 {[%clk 0:02:50.5]} 12... Kg7
{[%clk 0:03:00.4]} 13. Nxc7 {[%clk 0:02:49.7]} 13... Rb8 {[%clk 0:03:00.8]} 14.
Nd5 {[%clk 0:02:49.6]} 14... e4 {[%clk 0:03:00.6]} 15. Nd2 {[%clk 0:02:42.1]}
15... Bxb2 {[%clk 0:03:00.3]} 16. Rab1 {[%clk 0:02:42]} 16... Ba3 {[%clk
0:03:00.7]} 17. Nxe4 {[%clk 0:02:41.3]} 17... Be6 {[%clk 0:02:59.9]} 18. Rfd1
{[%clk 0:02:39]} 18... Ne5 {[%clk 0:02:58.2]} 19. Nd2 {[%clk 0:02:29.8]} 19...
b5 {[%clk 0:02:55.8]} 20. Rxb5 {[%clk 0:02:07.7]} 20... Rxb5 {[%clk 0:02:43.3]}
21. cxb5 {[%clk 0:02:08.6]} 21... Bxd5 {[%clk 0:02:14]} 22. Nf1 {[%clk
0:01:21.1]} 22... Bxg2 {[%clk 0:02:11.2]} 23. Rxd8 {[%clk 0:01:20.4]} 23... Bh3
{[%clk 0:02:06.3]} 24. Ra8 {[%clk 0:01:14.8]} 24... Bc5 {[%clk 0:02:03.9]} 25.
a4 {[%clk 0:01:13.4]} 25... Be6 {[%clk 0:01:51.4]} 26. Ne3 {[%clk 0:01:10.8]}
26... Bb6 {[%clk 0:01:43.4]} 27. a5 {[%clk 0:01:07.6]} 27... Bxa5 {[%clk
0:01:41.8]} 28. Rxa7 {[%clk 0:01:07.1]} 28... Bb6 {[%clk 0:01:40.8]} 29. Ra6
{[%clk 0:01:06.9]} 29... Nd7 {[%clk 0:01:39.9]} 30. Ra1 {[%clk 0:00:43.5]} 30...
Kf8 {[%clk 0:01:37]} 31. Rd1 {[%clk 0:00:40.7]} 31... Bxe3 {[%clk 0:01:29.3]}
32. fxe3 {[%clk 0:00:41.6]} 32... Ke7 {[%clk 0:01:29.1]} 33. Kf2 {[%clk
0:00:30.3]} 33... Nb6 {[%clk 0:01:26.2]} 34. e4 {[%clk 0:00:29.5]} 34... Kf6
{[%clk 0:01:18.1]} 35. Ke3 {[%clk 0:00:29]} 35... Ke5 {[%clk 0:01:18.1]} 36. Rc1
{[%clk 0:00:25.5]} 36... Bc4 {[%clk 0:01:13.7]} 37. h4 {[%clk 0:00:22.1]} 37...
h5 {[%clk 0:01:08.9]} 38. Ra1 {[%clk 0:00:19.3]} 38... Kd6 {[%clk 0:01:04.1]}
39. Kd4 {[%clk 0:00:17]} 39... Bxb5 {[%clk 0:00:58.7]} 40. Rb1 {[%clk
0:00:16.8]} 40... Kc6 {[%clk 0:00:56.4]} 41. Ke5 {[%clk 0:00:17]} 41... Bxe2
{[%clk 0:00:54.7]} 42. Kf6 {[%clk 0:00:16.4]} 42... Bc4 {[%clk 0:00:53.7]} 43.
e5 {[%clk 0:00:15.7]} 43... Be6 {[%clk 0:00:52.4]} 44. Rd1 {[%clk 0:00:13.9]}
44... Nd5+ {[%clk 0:00:49.9]} 45. Kg7 {[%clk 0:00:13.8]} 45... Ne3 {[%clk
0:00:47.5]} 46. Rd6+ {[%clk 0:00:12.8]} 46... Kc5 {[%clk 0:00:47.8]} 47. Rxe6
{[%clk 0:00:12.8]} 47... fxe6 {[%clk 0:00:47.3]} 48. Kxg6 {[%clk 0:00:13.7]}
48... Kd5 {[%clk 0:00:46]} 49. Kg5 {[%clk 0:00:12.8]} 49... Kxe5 {[%clk
0:00:44.9]} 50. Kxh5 {[%clk 0:00:13.7]} 50... Kf5 {[%clk 0:00:44.6]} 51. g4+
{[%clk 0:00:13.6]} 51... Kf6 {[%clk 0:00:42.1]} 52. g5+ {[%clk 0:00:13.3]} 52...
Kg7 {[%clk 0:00:38.3]} 53. g6 {[%clk 0:00:13.2]} 53... Kf6 {[%clk 0:00:37.2]}
54. Kh6 {[%clk 0:00:10.8]} 54... Nf5+ {[%clk 0:00:37.7]} 55. Kh7 {[%clk
0:00:10.5]} 55... Ng7 {[%clk 0:00:36.2]} 56. Kh6 {[%clk 0:00:08.7]} 56... e5
{[%clk 0:00:35.6]} 57. h5 {[%clk 0:00:08.5]} 57... e4 {[%clk 0:00:35.1]} 58. Kh7
{[%clk 0:00:08.7]} 58... Nxh5 {[%clk 0:00:35.2]} 59. Kh6 {[%clk 0:00:06.9]}
59... Ng7 {[%clk 0:00:33.9]} 60. Kh7 {[%clk 0:00:07.8]} 60... e3 {[%clk
0:00:34.1]} 61. Kg8 {[%clk 0:00:08.7]} 61... e2 {[%clk 0:00:33.9]} 62. Kf8
{[%clk 0:00:09.6]} 62... e1=Q {[%clk 0:00:33.1]} 63. Kg8 {[%clk 0:00:10.5]}
63... Qe8+ {[%clk 0:00:32.6]} 64. Kh7 {[%clk 0:00:11.4]} 64... Qxg6+ {[%clk
0:00:32.3]} 65. Kg8 {[%clk 0:00:11.9]} 65... Ne6+ {[%clk 0:00:31.4]} 66. Kh8
{[%clk 0:00:11.2]} 66... Qg7# {[%clk 0:00:31.6]} 0-1

[Event "*** Titled Tuesday Blitz"]
[Site "Chess.com"]
[Date "2020.12.29"]
[Round "4"]
[White "Margency"]
[Black "Khusenkhojaev"]
[Result "0-1"]
[WhiteElo "2606"]
[BlackElo "2469"]
[TimeControl "180+1"]
[EndTime "10:39:46 PST"]
[Termination "Khusenkhojaev won by resignation"]

1. e4 {[%clk 0:03:00.9]} 1... e5 {[%clk 0:02:59]} 2. f4 {[%clk 0:02:59.5]} 2...
exf4 {[%clk 0:02:57.3]} 3. Nf3 {[%clk 0:02:59.6]} 3... d6 {[%clk 0:02:57.3]} 4.
Bc4 {[%clk 0:02:57]} 4... h6 {[%clk 0:02:56]} 5. O-O {[%clk 0:02:56.2]} 5... g5
{[%clk 0:02:54.6]} 6. d4 {[%clk 0:02:56.8]} 6... Bg7 {[%clk 0:02:54.1]} 7. c3
{[%clk 0:02:50.1]} 7... Ne7 {[%clk 0:02:54.1]} 8. g3 {[%clk 0:02:48.5]} 8... Bh3
{[%clk 0:02:51.9]} 9. gxf4 {[%clk 0:02:46.7]} 9... Bxf1 {[%clk 0:02:44.2]} 10.
Qxf1 {[%clk 0:02:46.5]} 10... gxf4 {[%clk 0:02:38.5]} 11. Bxf4 {[%clk
0:02:44.1]} 11... Qd7 {[%clk 0:02:33.6]} 12. Bg3 {[%clk 0:02:35.5]} 12... Nbc6
{[%clk 0:02:31]} 13. Bxf7+ {[%clk 0:02:32.7]} 13... Kd8 {[%clk 0:02:28.7]} 14.
Nbd2 {[%clk 0:02:23.9]} 14... Rf8 {[%clk 0:02:26.2]} 15. Qc4 {[%clk 0:02:01.2]}
15... Na5 {[%clk 0:01:49.3]} 16. Qe6 {[%clk 0:02:00.7]} 16... Nf5 {[%clk
0:01:44.8]} 17. Qxd7+ {[%clk 0:01:47.3]} 17... Kxd7 {[%clk 0:01:43.8]} 18. Bh5
{[%clk 0:01:40.7]} 18... Nxg3 {[%clk 0:01:40]} 19. hxg3 {[%clk 0:01:40.5]} 19...
c5 {[%clk 0:01:31.7]} 20. Bg4+ {[%clk 0:01:22.3]} 20... Kc7 {[%clk 0:01:30.3]}
21. d5 {[%clk 0:01:21.7]} 21... b5 {[%clk 0:01:23.4]} 22. Nh4 {[%clk 0:01:10]}
22... Nc4 {[%clk 0:01:04.9]} 23. Nxc4 {[%clk 0:01:08]} 23... bxc4 {[%clk
0:01:04.7]} 24. Nf5 {[%clk 0:01:04]} 24... Be5 {[%clk 0:01:03.8]} 25. Rc1 {[%clk
0:00:42.4]} 25... Rg8 {[%clk 0:00:51.7]} 26. Be2 {[%clk 0:00:41.5]} 26... Bxg3
{[%clk 0:00:49.7]} 27. Kf1 {[%clk 0:00:37.6]} 27... Bh2 {[%clk 0:00:42]} 28. Rc2
{[%clk 0:00:35.4]} 28... Rg1+ {[%clk 0:00:40.3]} 29. Kf2 {[%clk 0:00:35.6]}
29... Rag8 {[%clk 0:00:39.5]} 30. Bf3 {[%clk 0:00:33.5]} 30... Bf4 {[%clk
0:00:31]} 31. Re2 {[%clk 0:00:17.1]} 31... Rb1 {[%clk 0:00:19.9]} 32. Bh5 {[%clk
0:00:12.5]} 32... Rgg1 {[%clk 0:00:17.2]} 33. Kf3 {[%clk 0:00:11.5]} 33... Rbf1+
{[%clk 0:00:16]} 34. Rf2 {[%clk 0:00:11.6]} 34... Rxf2+ {[%clk 0:00:15.4]} 35.
Kxf2 {[%clk 0:00:12.5]} 35... Rb1 {[%clk 0:00:15.7]} 36. Be2 {[%clk 0:00:11.1]}
36... Rxb2 {[%clk 0:00:11.4]} 37. Kf3 {[%clk 0:00:12]} 37... Be5 {[%clk
0:00:11.4]} 38. Bxc4 {[%clk 0:00:12.2]} 38... Bxc3 {[%clk 0:00:11.8]} 39. Nxh6
{[%clk 0:00:12.6]} 39... Be5 {[%clk 0:00:10]} 40. Nf5 {[%clk 0:00:11.6]} 40...
Rc2 {[%clk 0:00:08.6]} 41. Bd3 {[%clk 0:00:10.1]} 41... Rxa2 {[%clk 0:00:07.8]}
42. Ne3 {[%clk 0:00:09.9]} 42... Ra3 {[%clk 0:00:05]} 43. Ke2 {[%clk 0:00:09.8]}
43... Ra2+ {[%clk 0:00:05.3]} 44. Kd1 {[%clk 0:00:09.3]} 44... a5 {[%clk
0:00:05.8]} 45. Nc4 {[%clk 0:00:09.5]} 45... a4 {[%clk 0:00:06.1]} 46. Kc1
{[%clk 0:00:07.9]} 46... a3 {[%clk 0:00:06.3]} 47. Bc2 {[%clk 0:00:07.3]} 47...
Ra1+ {[%clk 0:00:06]} 48. Kd2 {[%clk 0:00:07.1]} 48... a2 {[%clk 0:00:06.4]} 49.
Nxe5 {[%clk 0:00:05.7]} 0-1

[Event "*** Titled Tuesday Blitz"]
[Site "Chess.com"]
[Date "2020.12.29"]
[Round "4"]
[White "GM4life"]
[Black "Mambastik-Fantastic"]
[Result "1-0"]
[WhiteElo "2425"]
[BlackElo "2215"]
[TimeControl "180+1"]
[EndTime "10:39:46 PST"]
[Termination "GM4life won by resignation"]

1. e4 {[%clk 0:03:00.9]} 1... c5 {[%clk 0:02:59.5]} 2. Nf3 {[%clk 0:03:01]} 2...
d6 {[%clk 0:02:59.4]} 3. d4 {[%clk 0:03:01.6]} 3... cxd4 {[%clk 0:02:59.5]} 4.
Nxd4 {[%clk 0:03:02.3]} 4... Nf6 {[%clk 0:02:59.7]} 5. Nc3 {[%clk 0:03:02.9]}
5... a6 {[%clk 0:03:00]} 6. h3 {[%clk 0:03:02.8]} 6... e5 {[%clk 0:02:59.8]} 7.
Nb3 {[%clk 0:03:03.4]} 7... Nbd7 {[%clk 0:02:58.4]} 8. g4 {[%clk 0:03:01.8]}
8... h6 {[%clk 0:02:57]} 9. Be3 {[%clk 0:03:01.2]} 9... Qc7 {[%clk 0:02:56.2]}
10. Qf3 {[%clk 0:02:57.7]} 10... b5 {[%clk 0:02:55.4]} 11. O-O-O {[%clk
0:02:56.5]} 11... Bb7 {[%clk 0:02:55.5]} 12. h4 {[%clk 0:02:53]} 12... Rc8
{[%clk 0:02:53.1]} 13. a3 {[%clk 0:02:49.6]} 13... Bxe4 {[%clk 0:02:46]} 14. Qh3
{[%clk 0:02:41.3]} 14... Bxh1 {[%clk 0:02:40.9]} 15. Qxh1 {[%clk 0:02:40.8]}
15... Nxg4 {[%clk 0:02:38.4]} 16. Bd3 {[%clk 0:02:39]} 16... Nxe3 {[%clk
0:02:36.3]} 17. fxe3 {[%clk 0:02:39.9]} 17... Nf6 {[%clk 0:02:34.7]} 18. Rf1
{[%clk 0:02:39.4]} 18... Be7 {[%clk 0:02:34]} 19. Bf5 {[%clk 0:02:38.2]} 19...
Rd8 {[%clk 0:02:31.5]} 20. Qg2 {[%clk 0:02:38.4]} 20... g6 {[%clk 0:02:27.4]}
21. Bxg6 {[%clk 0:02:35.7]} 21... fxg6 {[%clk 0:02:22.8]} 22. Qxg6+ {[%clk
0:02:34.5]} 22... Kd7 {[%clk 0:02:22.1]} 23. Rxf6 {[%clk 0:02:33.7]} 23... Bxf6
{[%clk 0:02:20.1]} 24. Qxf6 {[%clk 0:02:33]} 24... Qc4 {[%clk 0:02:08]} 25. Qg7+
{[%clk 0:02:28.1]} 25... Kc8 {[%clk 0:01:57.6]} 26. Na5 {[%clk 0:02:27.8]} 26...
Qc7 {[%clk 0:01:43.6]} 27. Qg4+ {[%clk 0:02:27.2]} 27... Kb8 {[%clk 0:01:41.6]}
28. Qb4 {[%clk 0:02:21]} 28... Qc5 {[%clk 0:01:12.3]} 29. Qe4 {[%clk 0:02:16.9]}
29... Rd7 {[%clk 0:01:09]} 30. Nc6+ {[%clk 0:02:07.2]} 30... Kc7 {[%clk
0:00:58.2]} 31. Nb4 {[%clk 0:02:06.8]} 31... d5 {[%clk 0:00:42.1]} 32. Qxe5+
{[%clk 0:02:06.2]} 32... Kb7 {[%clk 0:00:35.4]} 33. Qxh8 {[%clk 0:02:03.8]}
33... Qxe3+ {[%clk 0:00:35.5]} 34. Kb1 {[%clk 0:02:03.4]} 34... d4 {[%clk
0:00:27.9]} 35. Ncd5 {[%clk 0:02:00.3]} 35... Qe1+ {[%clk 0:00:27.5]} 36. Ka2
{[%clk 0:02:00.3]} 36... Qe6 {[%clk 0:00:27.4]} 37. Qxd4 {[%clk 0:02:00.2]}
37... a5 {[%clk 0:00:24.7]} 38. Qf6 {[%clk 0:01:37]} 38... Qxf6 {[%clk
0:00:19.5]} 39. Nxf6 {[%clk 0:01:37.9]} 39... Rd4 {[%clk 0:00:16.4]} 40. Nbd5
{[%clk 0:01:33.8]} 40... Rxh4 {[%clk 0:00:16.2]} 41. Ng8 {[%clk 0:01:30.8]}
41... Rh2 {[%clk 0:00:14.8]} 42. Nc3 {[%clk 0:01:27.8]} 42... b4 {[%clk
0:00:14.4]} 43. axb4 {[%clk 0:01:27.3]} 43... axb4 {[%clk 0:00:14.6]} 44. Nd5
{[%clk 0:01:26.7]} 44... h5 {[%clk 0:00:13.9]} 45. Ngf6 {[%clk 0:01:21.7]} 45...
h4 {[%clk 0:00:13.7]} 46. Kb3 {[%clk 0:01:19.6]} 46... h3 {[%clk 0:00:12.7]} 47.
Nf4 {[%clk 0:01:02.1]} 47... Rf2 {[%clk 0:00:11.8]} 48. Nxh3 {[%clk 0:01:01.7]}
48... Rxf6 {[%clk 0:00:11.2]} 49. Kxb4 {[%clk 0:01:01.9]} 49... Kb6 {[%clk
0:00:10.2]} 50. c4 {[%clk 0:01:00.2]} 50... Rf1 {[%clk 0:00:07.6]} 51. Ng5
{[%clk 0:00:59.2]} 51... Rf5 {[%clk 0:00:06.1]} 52. Ne6 {[%clk 0:00:56.6]} 52...
Rh5 {[%clk 0:00:05.8]} 53. Nd4 {[%clk 0:00:52.7]} 53... Rh4 {[%clk 0:00:05.4]}
54. Nf3 {[%clk 0:00:51.4]} 54... Rh3 {[%clk 0:00:05.2]} 55. Ne5 {[%clk
0:00:51.3]} 55... Rh2 {[%clk 0:00:04.9]} 56. b3 {[%clk 0:00:50.5]} 56... Rh5
{[%clk 0:00:04.5]} 57. c5+ {[%clk 0:00:49.2]} 57... Kc7 {[%clk 0:00:04.1]} 58.
Nc4 {[%clk 0:00:49.4]} 58... Rh4 {[%clk 0:00:04.1]} 59. Kb5 {[%clk 0:00:48.5]}
59... Kb7 {[%clk 0:00:04.2]} 60. b4 {[%clk 0:00:48.4]} 60... Kc7 {[%clk
0:00:04.4]} 61. Ne3 {[%clk 0:00:46.6]} 61... Rh5 {[%clk 0:00:04.5]} 62. Ng4
{[%clk 0:00:45]} 62... Rg5 {[%clk 0:00:04.5]} 63. Nf6 {[%clk 0:00:44.5]} 63...
Rf5 {[%clk 0:00:04.8]} 64. Ne4 {[%clk 0:00:43.2]} 64... Re5 {[%clk 0:00:04.5]}
65. Nd6 {[%clk 0:00:43.5]} 65... Rh5 {[%clk 0:00:04.3]} 66. Ka5 {[%clk
0:00:43.6]} 66... Rg5 {[%clk 0:00:04.4]} 67. Nb5+ {[%clk 0:00:42.9]} 67... Kb7
{[%clk 0:00:03.9]} 68. Nd4 {[%clk 0:00:42.8]} 68... Kc7 {[%clk 0:00:03.9]} 69.
Ne6+ {[%clk 0:00:42.8]} 1-0

[Event "*** Titled Tuesday Blitz"]
[Site "Chess.com"]
[Date "2020.12.29"]
[Round "4"]
[White "Morshynska"]
[Black "Angel_Hranitel_37"]
[Result "1-0"]
[WhiteElo "2221"]
[BlackElo "2402"]
[TimeControl "180+1"]
[EndTime "10:39:46 PST"]
[Termination "Morshynska won by checkmate"]

1. Nf3 {[%clk 0:03:00.9]} 1... Nf6 {[%clk 0:03:00.3]} 2. g3 {[%clk 0:03:00.5]}
2... g6 {[%clk 0:03:00.5]} 3. Bg2 {[%clk 0:02:59]} 3... Bg7 {[%clk 0:03:01.4]}
4. O-O {[%clk 0:02:59.6]} 4... O-O {[%clk 0:03:02.3]} 5. d4 {[%clk 0:03:00.3]}
5... d6 {[%clk 0:03:03]} 6. b3 {[%clk 0:02:59.4]} 6... Nbd7 {[%clk 0:03:01.7]}
7. Bb2 {[%clk 0:02:58.5]} 7... c6 {[%clk 0:03:02.6]} 8. c4 {[%clk 0:02:55.4]}
8... Re8 {[%clk 0:03:03.1]} 9. Nc3 {[%clk 0:02:53.6]} 9... e5 {[%clk 0:02:59.1]}
10. dxe5 {[%clk 0:02:54.5]} 10... dxe5 {[%clk 0:02:57.8]} 11. Nd2 {[%clk
0:02:43.6]} 11... Nc5 {[%clk 0:02:43.9]} 12. Nde4 {[%clk 0:02:29.6]} 12... Nfxe4
{[%clk 0:02:05.1]} 13. Nxe4 {[%clk 0:02:28]} 13... Qb6 {[%clk 0:02:05.5]} 14.
Nxc5 {[%clk 0:01:48.8]} 14... Qxc5 {[%clk 0:02:06.4]} 15. Qc1 {[%clk 0:01:48.2]}
15... Bg4 {[%clk 0:02:01.9]} 16. Re1 {[%clk 0:01:38.6]} 16... a5 {[%clk
0:01:58.1]} 17. a4 {[%clk 0:01:30.9]} 17... Qb6 {[%clk 0:01:51.5]} 18. Qc3
{[%clk 0:01:29.6]} 18... Rad8 {[%clk 0:01:48.3]} 19. h3 {[%clk 0:01:27.5]} 19...
Be6 {[%clk 0:01:40.9]} 20. Rad1 {[%clk 0:01:21.5]} 20... f5 {[%clk 0:01:24.5]}
21. h4 {[%clk 0:01:17.6]} 21... Re7 {[%clk 0:01:18.1]} 22. h5 {[%clk 0:01:03.4]}
22... Red7 {[%clk 0:01:11.9]} 23. Rxd7 {[%clk 0:00:57.8]} 23... Rxd7 {[%clk
0:01:12.8]} 24. hxg6 {[%clk 0:00:52.4]} 24... hxg6 {[%clk 0:01:13.4]} 25. Qc2
{[%clk 0:00:41.8]} 25... Qd8 {[%clk 0:01:10.4]} 26. Bc3 {[%clk 0:00:40.4]} 26...
Kf7 {[%clk 0:01:02.6]} 27. e3 {[%clk 0:00:32.7]} 27... e4 {[%clk 0:00:56]} 28.
Bxg7 {[%clk 0:00:30.5]} 28... Kxg7 {[%clk 0:00:56.9]} 29. Qc3+ {[%clk
0:00:28.4]} 29... Kf7 {[%clk 0:00:57]} 30. Bf1 {[%clk 0:00:28.6]} 30... c5
{[%clk 0:00:40.6]} 31. Be2 {[%clk 0:00:28]} 31... Rd2 {[%clk 0:00:39]} 32. Kg2
{[%clk 0:00:23.2]} 32... b6 {[%clk 0:00:33.6]} 33. Qe5 {[%clk 0:00:18.9]} 33...
Rb2 {[%clk 0:00:17.7]} 34. Qxb2 {[%clk 0:00:17.3]} 34... Qd6 {[%clk 0:00:16.5]}
35. Rh1 {[%clk 0:00:16.3]} 35... f4 {[%clk 0:00:14.6]} 36. Rh7+ {[%clk
0:00:15.1]} 36... Kf8 {[%clk 0:00:15.2]} 37. Qf6+ {[%clk 0:00:13.3]} 37... Ke8
{[%clk 0:00:14.4]} 38. Rh8+ {[%clk 0:00:10.7]} 38... Kd7 {[%clk 0:00:15]} 39.
Rd8+ {[%clk 0:00:11.2]} 39... Kc7 {[%clk 0:00:15.7]} 40. Rxd6 {[%clk 0:00:11.5]}
40... Kxd6 {[%clk 0:00:16.6]} 41. Qxf4+ {[%clk 0:00:10.9]} 41... Kd7 {[%clk
0:00:17.1]} 42. Qxe4 {[%clk 0:00:10.9]} 42... Bf5 {[%clk 0:00:17.8]} 43. Qd5+
{[%clk 0:00:10.5]} 43... Kc7 {[%clk 0:00:18.6]} 44. Bf3 {[%clk 0:00:10.4]} 44...
Bd7 {[%clk 0:00:19.5]} 45. Qb7+ {[%clk 0:00:10]} 45... Kd8 {[%clk 0:00:20.4]}
46. Qxb6+ {[%clk 0:00:10.6]} 46... Ke7 {[%clk 0:00:21.3]} 47. Qxc5+ {[%clk
0:00:10.7]} 47... Kd8 {[%clk 0:00:21.6]} 48. Qxa5+ {[%clk 0:00:11.2]} 48... Ke8
{[%clk 0:00:22]} 49. Qg5 {[%clk 0:00:11.7]} 49... Bf5 {[%clk 0:00:22.9]} 50. g4
{[%clk 0:00:11.5]} 50... Bc2 {[%clk 0:00:22.6]} 51. Bd5 {[%clk 0:00:11.9]} 51...
Kd7 {[%clk 0:00:22.1]} 52. e4 {[%clk 0:00:11.3]} 52... Kd6 {[%clk 0:00:23]} 53.
Qxg6+ {[%clk 0:00:10.6]} 53... Kc5 {[%clk 0:00:23.9]} 54. Qc6+ {[%clk
0:00:10.3]} 54... Kd4 {[%clk 0:00:24.8]} 55. Qb6+ {[%clk 0:00:10.3]} 55... Kc3
{[%clk 0:00:25.7]} 56. c5 {[%clk 0:00:10.2]} 56... Bd3 {[%clk 0:00:26.3]} 57. c6
{[%clk 0:00:10]} 57... Kb2 {[%clk 0:00:27.2]} 58. Kg3 {[%clk 0:00:09.8]} 58...
Ba6 {[%clk 0:00:27.7]} 59. Qxa6 {[%clk 0:00:09.2]} 59... Kc3 {[%clk 0:00:28.5]}
60. Qc4+ {[%clk 0:00:09.1]} 60... Kb2 {[%clk 0:00:28.5]} 61. b4 {[%clk
0:00:08.4]} 61... Ka3 {[%clk 0:00:29.4]} 62. Qc3+ {[%clk 0:00:07.4]} 62... Kxa4
{[%clk 0:00:30.3]} 63. b5 {[%clk 0:00:07]} 63... Kxb5 {[%clk 0:00:31.2]} 64. c7
{[%clk 0:00:07.1]} 64... Kb6 {[%clk 0:00:32]} 65. Qc6+ {[%clk 0:00:07.2]} 65...
Ka7 {[%clk 0:00:32.9]} 66. Qb7# {[%clk 0:00:06.2]} 1-0